fUSD/lending_fUSD_20241127
["ID","MTS","AMOUNT","RATE_DAILY","PERIOD"]
[343595163,1732740707387,-341.52,9.999e-05,2]
[343595164,1732740707397,-500.0,9.999e-05,2]
[343595165,1732740707407,-1328.71,9.999e-05,2]
[343595166,1732740707417,-1328.71,9.999e-05,2]
[343595167,1732740707426,-500.0,9.999e-05,2]
[343595168,1732740707436,-1328.71,9.999e-05,2]
[343595169,1732740707446,-500.0,9.999e-05,2]
[343595170,1732740707457,-1328.71,9.999e-05,2]
[343595171,1732740707467,-500.0,9.999e-05,2]
[343595172,1732740707478,-500.0,9.999e-05,2]
[343595173,1732740707488,-1328.71,9.999e-05,2]
[343595174,1732740707498,-500.0,9.999e-05,2]
[343595175,1732740707508,-589.89,9.999e-05,2]
[343595176,1732740707518,-1328.71,9.999e-05,2]
[343595177,1732740707527,-500.0,9.999e-05,2]
[343595178,1732740707537,-589.89,9.999e-05,2]
[343595179,1732740707546,-1328.71,9.999e-05,2]
[343595180,1732740707556,-610.35,9.999e-05,2]
[343595181,1732740707565,-589.89,9.999e-05,2]
[343595182,1732740707575,-1328.71,9.999e-05,2]
[343595183,1732740707585,-1328.71,9.999e-05,2]
[343595184,1732740707595,-589.89,9.999e-05,2]
[343595185,1732740707605,-589.89,9.999e-05,2]
[343595186,1732740707616,-1328.7102,9.999e-05,2]
[343595187,1732740707626,-589.89,9.999e-05,2]
[343595188,1732740707636,-589.89,9.999e-05,2]
[343595189,1732740707646,-589.89,9.999e-05,2]
[343595190,1732740707655,-589.89,9.999e-05,2]
[343595191,1732740707665,-589.89,9.999e-05,2]
[343595192,1732740707675,-589.89,9.999e-05,2]
[343595193,1732740707685,-589.89,9.999e-05,2]
[343595194,1732740707695,-1140.37,9.999e-05,2]
[343595195,1732740707706,-1140.37,9.999e-05,2]
[343595196,1732740707716,-1140.37,9.999e-05,2]
[343595197,1732740707726,-1140.37,9.999e-05,2]
[343595198,1732740707736,-469.06,9.999e-05,2]
[343595199,1732740707746,-1140.59,9.999e-05,2]
[343595200,1732740707756,-434.71,9.999e-05,2]
[343595201,1732740707765,-500.0,9.999e-05,2]
[343595202,1732740707775,-500.0,9.999e-05,2]
[343595203,1732740707785,-500.0,9.999e-05,2]
[343595204,1732740707796,-500.0,9.999e-05,2]
[343595205,1732740707806,-1259.0,0.0001,2]
[343595206,1732740707816,-565.0,0.0001,2]
[343595207,1732740707827,-1999.0,0.0001,2]
[343595208,1732740707837,-150.0,0.0001,2]
[343595209,1732740707848,-630.0,0.0001,2]
[343595210,1732740707859,-1931.0,0.0001,2]
[343595211,1732740707870,-562.0,0.0001,2]
[343595212,1732740707882,-1263.0,0.0001,2]
[343595213,1732740707893,-816.0,0.0001,2]
[343595214,1732740707903,-3756.0,0.0001,2]
[343595215,1732740707914,-534.0,0.0001,2]
[343595216,1732740707925,-3522.0,0.0001,2]
[343595217,1732740707936,-978.0,0.0001,2]
[343595218,1732740707948,-4111.68749986,0.0001,2]
[343595219,1732740707958,-4111.6874998,0.0001,2]
[343595220,1732740707969,-4111.6874998,0.0001,2]
[343595221,1732740707978,-4111.6874998,0.0001,2]
[343595222,1732740707989,-4111.6874998,0.0001,2]
[343595223,1732740707999,-4111.6874998,0.0001,2]
[343595224,1732740708009,-4111.6874998,0.0001,2]
[343595225,1732740708019,-4111.6874998,0.0001,2]
[343595226,1732740708029,-4111.6874998,0.0001,2]
[343595227,1732740708039,-1164.0,0.0001,2]
[343595228,1732740708049,-5953.0,0.0001,2]
[343595229,1732740708059,-241.617,0.0001,2]
[343595230,1732740708070,-184.084,0.0001,2]
[343595231,1732740708080,-13688.0,0.0001,2]
[343595232,1732740708094,-150.0,0.0001,2]
[343595233,1732740708103,-1315334.13547597,0.0001,2]
[343595234,1732740708980,-76345.78058276,0.0001,2]
[343595235,1732740709011,-425.009936,9.994e-05,2]
[343595236,1732740709516,-74.990064,9.994e-05,2]
[343595237,1732740709533,-500.0,9.994e-05,2]
[343595238,1732740709542,-500.0,9.994e-05,2]
[343595239,1732740709552,-500.0,9.996e-05,2]
[343595240,1732740709562,-500.0,9.996e-05,2]
[343595241,1732740709572,-500.0,9.997e-05,2]
[343595242,1732740709582,-500.0,9.997e-05,2]
[343595243,1732740709591,-500.0,9.997e-05,2]
[343595244,1732740709601,-500.0,9.997e-05,2]
[343595245,1732740709610,-166.42,9.997e-05,2]
[343595246,1732740709620,-500.0,9.997e-05,2]
[343595247,1732740709629,-500.0,9.997e-05,2]
[343595248,1732740709639,-500.0,9.997e-05,2]
[343595249,1732740709648,-176.0,9.998e-05,2]
[343595250,1732740709657,-8888.91957913,9.999e-05,2]
[343595251,1732740709667,-500.0,9.999e-05,2]
[343595252,1732740709676,-500.0,9.999e-05,2]
[343595253,1732740709685,-500.0,9.999e-05,2]
[343595254,1732740709695,-22443.39006689,0.0001,2]
[343595255,1732740709706,-99574.35625512,0.0001,2]
[343595256,1732740709737,-500.0,9.997e-05,2]
[343595257,1732740709747,-30099.50746079,0.0001,2]
[343595258,1732740709758,-1912.71142749,0.0001,2]
[343595259,1732740710710,-422.00877576,9.994e-05,2]
[343595260,1732740710721,-500.0,9.995e-05,2]
[343595261,1732740710732,-310.07169474,9.995e-05,2]
[343595262,1732740710742,-500.0,9.996e-05,2]
[343595263,1732740710752,-500.0,9.997e-05,2]
[343595264,1732740710761,-500.0,9.997e-05,2]
[343595265,1732740710770,-500.0,9.997e-05,2]
[343595266,1732740710779,-500.0,9.997e-05,2]
[343595267,1732740710788,-500.0,9.997e-05,2]
[343595268,1732740710798,-396.26916122,9.997e-05,2]
[343595269,1732740710808,-500.0,9.997e-05,2]
[343595270,1732740710817,-500.0,9.997e-05,2]
[343595271,1732740710827,-500.0,9.997e-05,2]
[343595272,1732740710836,-500.0,9.997e-05,2]
[343595273,1732740710847,-500.0,9.997e-05,2]
[343595274,1732740710857,-82730.36024643,9.998e-05,2]
[343595275,1732740710869,-517.94634295,9.998e-05,2]
[343595276,1732740711504,-500.0,9.988e-05,2]
[343595277,1732740711514,-500.0,9.989e-05,2]
[343595278,1732740711523,-500.0,9.989e-05,2]
[343595279,1732740711532,-500.0,9.993e-05,2]
[343595280,1732740711542,-500.0,9.994e-05,2]
[343595281,1732740711551,-500.0,9.994e-05,2]
[343595282,1732740711560,-500.0,9.995e-05,2]
[343595283,1732740711570,-500.0,9.995e-05,2]
[343595284,1732740711579,-500.0,9.996e-05,2]
[343595285,1732740711588,-401.22548952,9.997e-05,2]
[343595286,1732740711597,-168794.9393407,9.998e-05,2]
[343595287,1732740711609,-6200.20073908,9.998e-05,2]
[343595288,1732740711620,-36301.38692648,9.998e-05,2]
[343595289,1732740711631,-820.000011,9.998e-05,2]
[343595290,1732740711642,-594.99998642,9.998e-05,2]
[343595291,1732740711663,-91916.85245404,9.998e-05,2]
[343595292,1732740711686,-417.64873294,9.998e-05,2]
[343595293,1732740711717,-500.0,9.997e-05,2]
[343595294,1732740711727,-702.157464,9.998e-05,2]
[343595295,1732740711827,-760.65789305,9.998e-05,2]
[343595296,1732740712123,-500.0,9.995e-05,2]
[343595297,1732740712135,-500.0,9.997e-05,2]
[343595298,1732740712145,-500.0,9.997e-05,2]
[343595299,1732740712154,-272.35334394,9.997e-05,2]
[343595300,1732740712192,-299.59,9.988e-05,2]
[343595301,1732740712226,-200.41,9.988e-05,2]
[343595302,1732740712236,-227.64665606,9.997e-05,2]
[343595303,1732740712245,-116.55988919,9.998e-05,2]
[343595304,1732740712257,-728.53474681,9.998e-05,2]
[343595305,1732740712289,-500.0,9.989e-05,2]
[343595306,1732740712299,-500.0,9.997e-05,2]
[343595307,1732740712308,-47308.0,9.998e-05,2]
[343595308,1732740712325,-4163.90116498,9.998e-05,2]
[343595309,1732740712904,-500.0,9.994e-05,2]
[343595310,1732740712914,-498.56,9.994e-05,2]
[343595311,1732740712924,-500.0,9.995e-05,2]
[343595312,1732740712933,-500.0,9.996e-05,2]
[343595313,1732740712943,-500.0,9.997e-05,2]
[343595314,1732740712954,-500.0,9.997e-05,2]
[343595315,1732740712964,-72144.15870755,9.998e-05,2]
[343595316,1732740712977,-926421.15352666,9.998e-05,2]
[343595317,1732740712988,-22377.09096745,9.998e-05,2]
[343595318,1732740712999,-500.0,9.998e-05,2]
[343595319,1732740713009,-500.0,9.998e-05,2]
[343595320,1732740713020,-181.44,9.998e-05,2]
[343595321,1732740713032,-582.59,9.998e-05,2]
[343595322,1732740713042,-500.0,9.998e-05,2]
[343595323,1732740713052,-514.88,9.998e-05,2]
[343595324,1732740713063,-500.0,9.998e-05,2]
[343595325,1732740713073,-500.0,9.998e-05,2]
[343595326,1732740713084,-500.0,9.998e-05,2]
[343595327,1732740713096,-500.0,9.998e-05,2]
[343595328,1732740713106,-500.0,9.998e-05,2]
[343595329,1732740713118,-500.0,9.998e-05,2]
[343595330,1732740713127,-500.0,9.998e-05,2]
[343595331,1732740713138,-500.0,9.998e-05,2]
[343595332,1732740713147,-500.0,9.998e-05,2]
[343595333,1732740713157,-500.0,9.998e-05,2]
[343595334,1732740713167,-500.0,9.998e-05,2]
[343595335,1732740713178,-500.0,9.998e-05,2]
[343595336,1732740713187,-500.0,9.998e-05,2]
[343595337,1732740713198,-500.0,9.998e-05,2]
[343595338,1732740713208,-542.43,9.998e-05,2]
[343595339,1732740713217,-458.55,9.998e-05,2]
[343595340,1732740713227,-424.24,9.999e-05,2]
[343595341,1732740713244,-1096.0,0.0001,2]
[343595342,1732740713254,-223.208,0.0001,2]
[343595343,1732740713263,-282147.88022375,0.0001,2]
[343595344,1732740713276,-28792.044,0.0001,2]
[343595345,1732740713289,-340352.92466345,0.0001,2]
[343595346,1732740713311,-500.0,9.995e-05,2]
[343595347,1732740713320,-18822.59799999,0.0001,2]
[343595348,1732740713334,-2442.49023922,0.0001,2]
[343595349,1732740713345,-1169.04,0.0001,2]
[343595350,1732740713365,-2221.03701774,0.0001,2]
[343595351,1732740713728,-500.0,9.988e-05,2]
[343595352,1732740713745,-500.0,9.988e-05,2]
[343595353,1732740713757,-500.0,9.989e-05,2]
[343595354,1732740713766,-500.0,9.989e-05,2]
[343595355,1732740713776,-500.0,9.993e-05,2]
[343595356,1732740713786,-500.0,9.995e-05,2]
[343595357,1732740713795,-500.0,9.995e-05,2]
[343595358,1732740713805,-500.0,9.996e-05,2]
[343595359,1732740713814,-500.0,9.998e-05,2]
[343595360,1732740713824,-500.0,9.998e-05,2]
[343595361,1732740713834,-500.0,9.998e-05,2]
[343595362,1732740713843,-500.0,9.998e-05,2]
[343595363,1732740713853,-500.0,9.998e-05,2]
[343595364,1732740713863,-500.0,9.998e-05,2]
[343595365,1732740713872,-500.0,9.998e-05,2]
[343595366,1732740713881,-59676.33590937,0.0001,2]
[343595367,1732740713893,-542.62195376,0.0001,2]
[343595368,1732740713904,-538.63140199,0.0001,2]
[343595369,1732740713924,-5135.99997,0.0001,2]
[343595370,1732740713935,-2525.65012,0.0001,2]
[343595371,1732740713948,-3055.700001,0.0001,2]
[343595372,1732740713959,-743863.52211342,0.0001,2]
[343595373,1732740713971,-96675.3312,0.0001,2]
[343595374,1732740714003,-383.86950312,0.0001,2]
[343595375,1732740714014,-366.2169955,0.0001,2]
[343595376,1732740714044,-500.0,9.995e-05,2]
[343595377,1732740714053,-33957.2378265,0.0001,2]
[343595378,1732740714069,-5601.16496486,0.0001,2]
[343595379,1732740714080,-339.15750075,0.0001,2]
[343595380,1732740714096,-96192.38831633,0.0001,2]
[343595381,1732740714108,-750.74999561,0.0001,2]
[343595383,1732740917173,-268.5,8.219e-05,2]
[343595404,1732741831907,-421.798651,8.219e-05,2]
[343595405,1732741832021,-1495.741349,8.219e-05,2]
[343595406,1732741832031,-161.0,8.802e-05,2]
[343595407,1732741832040,-890.88,8.84e-05,2]
[343595408,1732741832050,-500.21,8.846e-05,2]
[343595409,1732741832060,-250.0,8.882e-05,2]
[343595410,1732741832070,-1000.0,8.898e-05,2]
[343595411,1732741832080,-418.07,8.921e-05,2]
[343595412,1732741832090,-188.27,8.924e-05,2]
[343595413,1732741832099,-493.01,8.951e-05,2]
[343595414,1732741832109,-250.0,8.958e-05,2]
[343595415,1732741832118,-164.85,8.959e-05,2]
[343595416,1732741832128,-434.45,9.021e-05,2]
[343595417,1732741832138,-434.45,9.031e-05,2]
[343595418,1732741832147,-434.45,9.041e-05,2]
[343595419,1732741832157,-868.9,9.041e-05,2]
[343595420,1732741832167,-434.46,9.178e-05,2]
[343595421,1732741832176,-362.875345,9.492e-05,2]
[343595422,1732741832189,-400.0,9.589e-05,2]
[343595424,1732741832199,-150.99,9.67e-05,2]
[343595426,1732741832208,-299.99,9.67e-05,2]
[343595428,1732741832217,-1141.51543521,9.797e-05,2]
[343595430,1732741832226,-1102.75898177,9.798e-05,2]
[343595432,1732741832236,-1015.7536672,9.798e-05,2]
[343595434,1732741832246,-1085.05681877,9.799e-05,2]
[343595436,1732741832256,-1119.49623041,9.8e-05,2]
[343595438,1732741832265,-1122.43340114,9.8e-05,2]
[343595440,1732741832275,-283.4324468,9.8e-05,2]
[343595442,1732741832284,-686.1488,9.85e-05,2]
[343595444,1732741832293,-150.0,9.854e-05,2]
[343595446,1732741832302,-219.137968,9.863e-05,2]
[343595448,1732741832312,-219.137968,9.863e-05,2]
[343595450,1732741832320,-150.0,9.863e-05,2]
[343595452,1732741832330,-2325.0371,9.888e-05,2]
[343595454,1732741832339,-996.2835,9.891e-05,2]
[343595456,1732741832349,-2500.0,9.893e-05,2]
[343595458,1732741832359,-747.92681649,9.899e-05,2]
[343595460,1732741832368,-3133.02236597,9.9e-05,2]
[343595462,1732741832380,-18079.38823403,9.9e-05,2]
[343595464,1732741832390,-12372.21174662,9.9e-05,2]
[343595768,1732741837884,-30048.98003609,9.9e-05,2]
[343595769,1732741837904,-2022.52869247,9.9e-05,2]
[343595770,1732741837930,-697.93362129,9.9e-05,2]
[343595771,1732741837944,-6404.42090353,9.9e-05,2]
[343595772,1732741837953,-1060.88287709,9.9e-05,2]
[343595773,1732741837974,-149.14885321,9.9e-05,2]
[343595774,1732741838193,-990.79925492,9.9e-05,2]
[343595775,1732741838204,-1896.41534237,9.9e-05,2]
[343595776,1732741838215,-999.50588656,9.9e-05,2]
[343595831,1732741839767,-1297.58398585,9.9e-05,2]
[343595832,1732741839777,-2619.01568043,9.9e-05,2]
[343595833,1732741839787,-905.55033372,9.9e-05,2]
[343595834,1732741839989,-583.44966628,9.9e-05,2]
[343595835,1732741840000,-384.98905116,9.973e-05,2]
[343595836,1732741840009,-500.0,9.973e-05,2]
[343595837,1732741840018,-449.25020891,9.973e-05,2]
[343595838,1732741840029,-50.74979109,9.973e-05,2]
[343595839,1732741840038,-331.57219938,9.98e-05,2]
[343595840,1732741840048,-331.57219938,9.981e-05,2]
[343595841,1732741840059,-331.57219938,9.981e-05,2]
[343595842,1732741840068,-331.57219938,9.982e-05,2]
[343595843,1732741840078,-500.0,9.988e-05,2]
[343595844,1732741840088,-500.0,9.988e-05,2]
[343595845,1732741840098,-527.56,9.988e-05,2]
[343595846,1732741840107,-574.64,9.988e-05,2]
[343595847,1732741840116,-500.0,9.988e-05,2]
[343595848,1732741840127,-500.0,9.988e-05,2]
[343595849,1732741840137,-500.0,9.988e-05,2]
[343595850,1732741840146,-500.0,9.988e-05,2]
[343595851,1732741840155,-500.0,9.988e-05,2]
[343595853,1732741840164,-29.03633139,9.988e-05,2]
[343595854,1732741840177,-470.96366861,9.988e-05,2]
[343595855,1732741840190,-500.0,9.988e-05,2]
[343595856,1732741840201,-500.0,9.988e-05,2]
[343595857,1732741840210,-54.04377242,9.988e-05,2]
[343595858,1732741840234,-445.95622758,9.988e-05,2]
[343595859,1732741840244,-280.51877239,9.988e-05,2]
[343595865,1732741842750,-8762.18235502,9.891e-05,2]
[343595866,1732741842809,-143.89334498,9.891e-05,2]
[343595867,1732741842819,-219.48122761,9.988e-05,2]
[343595868,1732741842828,-500.0,9.988e-05,2]
[343595869,1732741842841,-500.0,9.988e-05,2]
[343595870,1732741842851,-500.0,9.988e-05,2]
[343595871,1732741842860,-500.0,9.988e-05,2]
[343595872,1732741842869,-500.0,9.988e-05,2]
[343595873,1732741842881,-544.51439378,9.988e-05,2]
[343595874,1732741842890,-500.0,9.988e-05,2]
[343595875,1732741842899,-645.43,9.988e-05,2]
[343595876,1732741842909,-500.0,9.988e-05,2]
[343595877,1732741842919,-500.0,9.988e-05,2]
[343595878,1732741842927,-561.04,9.988e-05,2]
[343595879,1732741842936,-500.0,9.988e-05,2]
[343595880,1732741842947,-500.0,9.988e-05,2]
[343595881,1732741842955,-500.0,9.988e-05,2]
[343595882,1732741842964,-500.0,9.988e-05,2]
[343595883,1732741842973,-1381.73656226,9.991e-05,2]
[343595884,1732741842983,-1381.73656226,9.992e-05,2]
[343595885,1732741842991,-500.0,9.992e-05,2]
[343595886,1732741843000,-500.0,9.992e-05,2]
[343595887,1732741843009,-500.0,9.992e-05,2]
[343595888,1732741843019,-500.0,9.992e-05,2]
[343595889,1732741843028,-500.0,9.992e-05,2]
[343595890,1732741843037,-500.0,9.992e-05,2]
[343595891,1732741843047,-500.0,9.992e-05,2]
[343595892,1732741843056,-500.0,9.992e-05,2]
[343595893,1732741843064,-500.0,9.992e-05,2]
[343595894,1732741843073,-500.0,9.992e-05,2]
[343595895,1732741843082,-26.85424305,9.992e-05,2]
[343595896,1732741843094,-2320.59575695,9.992e-05,2]
[343595897,1732741843105,-500.0,9.992e-05,2]
[343595898,1732741843115,-500.0,9.992e-05,2]
[343595899,1732741843124,-500.0,9.992e-05,2]
[343595900,1732741843134,-500.0,9.992e-05,2]
[343595901,1732741843143,-500.0,9.992e-05,2]
[343595902,1732741843152,-500.0,9.992e-05,2]
[343595903,1732741843161,-500.0,9.992e-05,2]
[343595904,1732741843170,-500.0,9.992e-05,2]
[343595905,1732741843180,-500.0,9.992e-05,2]
[343595906,1732741843192,-500.0,9.992e-05,2]
[343595907,1732741843201,-500.0,9.992e-05,2]
[343595908,1732741843211,-500.0,9.992e-05,2]
[343595909,1732741843220,-500.0,9.992e-05,2]
[343595910,1732741843229,-116.2040034,9.992e-05,2]
[343595911,1732741843241,-383.7959966,9.992e-05,2]
[343595912,1732741843251,-500.0,9.992e-05,2]
[343595913,1732741843259,-500.0,9.992e-05,2]
[343595914,1732741843268,-500.0,9.992e-05,2]
[343595915,1732741843277,-500.0,9.992e-05,2]
[343595916,1732741843287,-500.0,9.992e-05,2]
[343595917,1732741843296,-420.31269081,9.992e-05,2]
[343595918,1732741843531,-500.0,9.992e-05,2]
[343595919,1732741843542,-500.0,9.992e-05,2]
[343595920,1732741843552,-500.0,9.992e-05,2]
[343595921,1732741843561,-500.0,9.992e-05,2]
[343595922,1732741843571,-500.0,9.992e-05,2]
[343595923,1732741843582,-500.0,9.992e-05,2]
[343595924,1732741843591,-596.76,9.992e-05,2]
[343595925,1732741843601,-500.0,9.992e-05,2]
[343595926,1732741843612,-500.0,9.992e-05,2]
[343595927,1732741843622,-500.0,9.992e-05,2]
[343595928,1732741843633,-303.78492187,9.992e-05,2]
[343595929,1732741843642,-500.0,9.992e-05,2]
[343595930,1732741843653,-380.04082993,9.992e-05,2]
[343595931,1732741843663,-500.0,9.992e-05,2]
[343595932,1732741843672,-500.0,9.992e-05,2]
[343595933,1732741843681,-500.0,9.992e-05,2]
[343595934,1732741843692,-500.0,9.992e-05,2]
[343595935,1732741843701,-500.0,9.992e-05,2]
[343595936,1732741843711,-384.86076353,9.992e-05,2]
[343595937,1732741843720,-500.0,9.993e-05,2]
[343595938,1732741843730,-429.71879537,9.993e-05,2]
[343595939,1732741843742,-70.28120463,9.993e-05,2]
[343595940,1732741843751,-500.0,9.993e-05,2]
[343595941,1732741843760,-500.0,9.993e-05,2]
[343595942,1732741843770,-303.22625398,9.993e-05,2]
[343595943,1732741843779,-500.0,9.993e-05,2]
[343595944,1732741843788,-500.0,9.993e-05,2]
[343595945,1732741843798,-500.0,9.993e-05,2]
[343595946,1732741843807,-500.0,9.993e-05,2]
[343595947,1732741843817,-500.0,9.993e-05,2]
[343595948,1732741843826,-410.53385162,9.993e-05,2]
[343595949,1732741843836,-500.0,9.993e-05,2]
[343595950,1732741843846,-500.0,9.993e-05,2]
[343595951,1732741843855,-500.0,9.993e-05,2]
[343595952,1732741843865,-500.0,9.993e-05,2]
[343595953,1732741843874,-500.0,9.993e-05,2]
[343595954,1732741843883,-500.0,9.993e-05,2]
[343595955,1732741843892,-582.68,9.993e-05,2]
[343595956,1732741843901,-500.0,9.993e-05,2]
[343595957,1732741843911,-500.0,9.993e-05,2]
[343595958,1732741843921,-500.0,9.993e-05,2]
[343595959,1732741843931,-500.0,9.993e-05,2]
[343595960,1732741843940,-500.0,9.993e-05,2]
[343595961,1732741843950,-500.0,9.993e-05,2]
[343595962,1732741843959,-500.0,9.993e-05,2]
[343595963,1732741843968,-621.66119501,9.993e-05,2]
[343595964,1732741843978,-500.0,9.993e-05,2]
[343595965,1732741843987,-500.0,9.993e-05,2]
[343595966,1732741843996,-500.0,9.993e-05,2]
[343595967,1732741844005,-500.0,9.993e-05,2]
[343595968,1732741844014,-500.0,9.993e-05,2]
[343595969,1732741844026,-500.0,9.993e-05,2]
[343595970,1732741844036,-500.0,9.993e-05,2]
[343595971,1732741844046,-541.47,9.993e-05,2]
[343595972,1732741844056,-500.0,9.993e-05,2]
[343595973,1732741844066,-500.0,9.993e-05,2]
[343595974,1732741844076,-341.85358928,9.993e-05,2]
[343595975,1732741844085,-248.52196128,9.993e-05,2]
[343595976,1732741844095,-578.83,9.993e-05,2]
[343595977,1732741844106,-581.16,9.993e-05,2]
[343595978,1732741844118,-500.0,9.993e-05,2]
[343595979,1732741844130,-500.0,9.993e-05,2]
[343595980,1732741844140,-500.0,9.993e-05,2]
[343595981,1732741844150,-500.0,9.993e-05,2]
[343595982,1732741844159,-500.0,9.993e-05,2]
[343595983,1732741844170,-500.0,9.993e-05,2]
[343595984,1732741844181,-500.0,9.993e-05,2]
[343595985,1732741844192,-500.0,9.993e-05,2]
[343595986,1732741844201,-488.7233215,9.993e-05,2]
[343595987,1732741844214,-11.2766785,9.993e-05,2]
[343595988,1732741844223,-500.0,9.993e-05,2]
[343595989,1732741844233,-500.0,9.993e-05,2]
[343595990,1732741844241,-500.0,9.993e-05,2]
[343595991,1732741844251,-500.0,9.993e-05,2]
[343595992,1732741844262,-500.0,9.993e-05,2]
[343595993,1732741844272,-500.0,9.993e-05,2]
[343595994,1732741844282,-500.0,9.993e-05,2]
[343595995,1732741844292,-500.0,9.993e-05,2]
[343595996,1732741844301,-25.09279639,9.993e-05,2]
[343595997,1732741844315,-474.90720361,9.993e-05,2]
[343595998,1732741844325,-500.0,9.993e-05,2]
[343595999,1732741844336,-500.0,9.993e-05,2]
[343596000,1732741844347,-500.0,9.993e-05,2]
[343596001,1732741844357,-500.0,9.993e-05,2]
[343596002,1732741844367,-500.0,9.993e-05,2]
[343596003,1732741844377,-500.0,9.993e-05,2]
[343596004,1732741844386,-500.0,9.993e-05,2]
[343596005,1732741844396,-500.0,9.993e-05,2]
[343596006,1732741844406,-500.0,9.993e-05,2]
[343596007,1732741844416,-500.0,9.993e-05,2]
[343596008,1732741844426,-500.0,9.993e-05,2]
[343596009,1732741844437,-512.91,9.993e-05,2]
[343596010,1732741844451,-500.0,9.993e-05,2]
[343596011,1732741844462,-500.0,9.993e-05,2]
[343596012,1732741844471,-500.0,9.993e-05,2]
[343596013,1732741844481,-500.0,9.993e-05,2]
[343596014,1732741844491,-500.0,9.993e-05,2]
[343596015,1732741844500,-500.0,9.993e-05,2]
[343596016,1732741844510,-500.0,9.993e-05,2]
[343596017,1732741844520,-636.3,9.993e-05,2]
[343596018,1732741844531,-500.0,9.993e-05,2]
[343596019,1732741844542,-500.0,9.993e-05,2]
[343596020,1732741844553,-500.0,9.993e-05,2]
[343596021,1732741844565,-500.0,9.993e-05,2]
[343596022,1732741844575,-500.0,9.993e-05,2]
[343596023,1732741844585,-500.0,9.993e-05,2]
[343596024,1732741844595,-500.0,9.993e-05,2]
[343596025,1732741844606,-500.0,9.993e-05,2]
[343596026,1732741844615,-500.0,9.993e-05,2]
[343596027,1732741844625,-500.0,9.993e-05,2]
[343596028,1732741844636,-500.0,9.993e-05,2]
[343596029,1732741844645,-500.0,9.993e-05,2]
[343596030,1732741844657,-500.0,9.993e-05,2]
[343596031,1732741844666,-500.0,9.993e-05,2]
[343596032,1732741844676,-500.0,9.993e-05,2]
[343596033,1732741844685,-500.0,9.993e-05,2]
[343596034,1732741844697,-500.0,9.993e-05,2]
[343596035,1732741844706,-500.0,9.993e-05,2]
[343596036,1732741844716,-500.0,9.993e-05,2]
[343596037,1732741844725,-500.0,9.993e-05,2]
[343596038,1732741844735,-500.0,9.993e-05,2]
[343596039,1732741844744,-627.27,9.993e-05,2]
[343596040,1732741844754,-500.0,9.993e-05,2]
[343596041,1732741844763,-386.50982519,9.993e-05,2]
[343596042,1732741844773,-500.0,9.993e-05,2]
[343596043,1732741844782,-500.0,9.993e-05,2]
[343596044,1732741844792,-500.0,9.993e-05,2]
[343596045,1732741844801,-216.97318379,9.993e-05,2]
[343596046,1732741844810,-500.0,9.993e-05,2]
[343596047,1732741844821,-500.0,9.993e-05,2]
[343596048,1732741844831,-507.95,9.993e-05,2]
[343596049,1732741844841,-500.0,9.993e-05,2]
[343596050,1732741844851,-500.0,9.993e-05,2]
[343596051,1732741844861,-500.0,9.993e-05,2]
[343596052,1732741844870,-500.0,9.993e-05,2]
[343596053,1732741844881,-500.0,9.993e-05,2]
[343596054,1732741844891,-500.0,9.993e-05,2]
[343596055,1732741844900,-500.0,9.993e-05,2]
[343596056,1732741844910,-500.0,9.993e-05,2]
[343596057,1732741844919,-500.0,9.993e-05,2]
[343596058,1732741844930,-500.0,9.993e-05,2]
[343596059,1732741844939,-500.0,9.993e-05,2]
[343596060,1732741844951,-500.0,9.993e-05,2]
[343596061,1732741844960,-500.0,9.993e-05,2]
[343596062,1732741844969,-500.0,9.993e-05,2]
[343596063,1732741844979,-500.0,9.993e-05,2]
[343596064,1732741844988,-500.0,9.993e-05,2]
[343596065,1732741845000,-500.0,9.993e-05,2]
[343596066,1732741845009,-500.0,9.993e-05,2]
[343596067,1732741845018,-500.0,9.993e-05,2]